bitfinex-derivatives/quotes_SOLF0:USTF0_20260123
["timestamp","ask_amount","ask_price","bid_price","bid_amount"]
[1769191188897,7.06331875,128.48,128.44,27.71038189]
[1769191189301,7.06331875,128.48,128.42,29.56956097]
[1769191189490,37.19054693,128.48,128.42,29.56956097]
[1769191189693,37.19054693,128.48,128.42,27.71038189]
[1769191190203,7.0146,128.47,128.42,27.71038189]
[1769191190900,8.87377908,128.47,128.42,27.71038189]
[1769191192308,7.0148,128.46,128.42,27.71038189]
[1769191192600,1.85917908,128.44,128.39,27.71038189]
[1769191193800,7.0166,128.43,128.39,27.71038189]
[1769191196604,7.0166,128.43,128.37,27.71038189]
[1769191196806,7.0166,128.43,128.37,29.56956097]
[1769191197708,7.017,128.42,128.37,29.56956097]
[1769191200210,35.2844491,128.44,128.38,27.71038189]
[1769191200510,0.05841219,128.41,128.38,29.56956097]
[1769191200698,0.05841219,128.41,128.38,27.71038189]
[1769191201501,0.05841219,128.41,128.38,29.56956097]
[1769191202507,7.0159,128.44,128.4,29.84042483]
[1769191202907,31.65671073,128.46,128.37,29.84042483]
[1769191203111,29.79203553,128.42,128.35,36.86072483]
[1769191203307,31.65671073,128.42,128.35,31.70510003]
[1769191203614,7.0175,128.41,128.36,1.8646752]
[1769191203913,29.79203553,128.42,128.37,1.92321263]
[1769191204308,29.79203553,128.42,128.37,0.05853743]
[1769191204509,0.05320741,128.41,128.35,31.70510003]
[1769191205208,29.79203553,128.46,128.4,1.8646752]
[1769191205416,36.80733553,128.46,128.41,1.8646752]
[1769191205818,7.0143,128.47,128.42,1.8646752]
[1769191206221,31.65671073,128.47,128.4,1.8646752]
[1769191206515,29.79203553,128.47,128.43,0.04901553]
[1769191206719,29.79203553,128.47,128.4,1.8646752]
[1769191207512,138.90793553,128.47,128.39,29.84042483]
[1769191207712,28.39090192,128.46,128.38,1.8646752]
[1769191207917,30.25557712,128.46,128.38,1.8646752]
[1769191208110,30.25557712,128.46,128.38,30.68902166]
[1769191208310,30.25557712,128.46,128.39,1.8646752]
[1769191208923,7.0159,128.44,128.39,1.8646752]
[1769191209215,35.40680192,128.44,128.39,1.8646752]
[1769191209417,35.40680192,128.44,128.38,30.68902166]
[1769191210123,35.40680192,128.44,128.39,1.8646752]
[1769191210318,35.40610192,128.46,128.4,1.8646752]
[1769191210618,28.39090192,128.46,128.39,30.68902166]
[1769191211513,28.39090192,128.44,128.37,28.82434646]
[1769191211723,28.39090192,128.44,128.37,30.68902166]
[1769191212417,28.39090192,128.42,128.35,30.68902166]
[1769191212610,28.39090192,128.42,128.36,1.8646752]
[1769191212814,28.39090192,128.42,128.35,1.8646752]
[1769191213012,7.0183,128.4,128.35,1.8646752]
[1769191213213,137.52990192,128.44,128.35,30.68902166]
[1769191213516,7.0165,128.43,128.37,28.82434646]
[1769191213711,7.0165,128.43,128.38,1.8646752]
[1769191214018,30.25557712,128.43,128.36,1.8646752]
[1769191214619,7.0177,128.41,128.36,1.8646752]
[1769191214815,28.39090192,128.43,128.37,1.8646752]
[1769191215222,28.39090192,128.43,128.32,109.2354]
[1769191215521,28.39090192,128.43,128.38,1.8646752]
[1769191215820,30.25557712,128.46,128.39,1.8646752]
[1769191216015,28.39090192,128.46,128.4,1.8646752]
[1769191216416,35.40590192,128.46,128.38,28.82434646]
[1769191216623,30.25557712,128.46,128.39,1.8646752]
[1769191217025,7.0155,128.45,128.39,1.8646752]
[1769191217226,35.40640192,128.45,128.39,1.8646752]
[1769191218419,35.40640192,128.45,128.39,30.68902166]
[1769191218720,35.40640192,128.45,128.39,28.82434646]
[1769191218924,35.40640192,128.45,128.39,30.68902166]
[1769191219227,35.40690192,128.44,128.37,30.68902166]
[1769191219426,35.40690192,128.44,128.36,7.0201]
[1769191219427,30.25557712,128.44,128.36,1.8646752]
[1769191219615,28.39090192,128.42,128.36,1.8646752]
[1769191219812,28.39090192,128.42,128.35,30.68902166]
[1769191220626,35.40800192,128.42,128.35,30.68902166]
[1769191221227,35.40800192,128.42,128.36,1.8646752]
[1769191221619,35.40800192,128.42,128.35,28.82434646]
[1769191221825,35.40800192,128.42,128.36,1.8646752]
[1769191222525,109.1322,128.45,128.37,1.8646752]
[1769191222526,37.27187712,128.44,128.37,1.8646752]
[1769191222727,37.27187712,128.44,128.36,28.82434646]
[1769191222728,35.40720192,128.44,128.38,1.8646752]
[1769191223442,28.39090192,128.44,128.39,1.8646752]
[1769191225750,37.27157712,128.44,128.38,1.8646752]
[1769191226949,8.8806752,128.44,128.38,30.68902166]
[1769191227155,1.8646752,128.47,128.41,30.68902166]
[1769191227452,1.8646752,128.5,128.44,1.8646752]
[1769191227846,30.25557712,128.5,128.44,1.8646752]
[1769191228250,28.39090192,128.5,128.44,30.68902166]
[1769191228452,37.26877712,128.49,128.42,30.68902166]
[1769191228759,30.25557712,128.48,128.42,28.82434646]
[1769191229844,30.25557712,128.47,128.34,14.0425]
[1769191230050,109.098,128.49,128.39,1.8646752]
[1769191230051,30.25557712,128.45,128.39,1.8646752]
[1769191230250,30.25557712,128.45,128.37,28.82434646]
[1769191230251,1.8646752,128.44,128.38,1.8646752]
[1769191230449,30.25557712,128.43,128.37,28.82434646]
[1769191230650,1.8646752,128.42,128.34,28.82434646]
[1769191230854,1.8646752,128.42,128.35,30.68902166]
[1769191231157,37.27207712,128.43,128.36,37.70902166]
[1769191231458,1.8646752,128.42,128.36,28.82434646]
[1769191231759,30.25557712,128.37,128.3,10.06489442]
[1769191232059,28.39090192,128.37,128.3,41.59108013]
[1769191232255,30.25557712,128.37,128.3,41.59108013]
[1769191232756,1.8646752,128.36,128.3,41.59108013]
[1769191232946,28.39090192,128.37,128.3,9.442e-05]
[1769191233149,29.84609883,128.33,128.3,9.442e-05]
[1769191233357,29.84609883,128.33,128.25,38.55208571]
[1769191233545,29.84609883,128.29,128.2,31.52618571]
[1769191233950,36.87059883,128.29,128.2,31.52618571]
[1769191234152,29.84609883,128.29,128.2,31.52618571]
[1769191234855,29.84609883,128.29,128.2,36.52930138]
[1769191235155,29.84609883,128.26,128.17,31.52618571]
[1769191235656,139.11239883,128.29,128.17,31.52618571]
[1769191235853,139.10149883,128.31,128.19,31.52618571]
[1769191236157,36.86919883,128.31,128.2,36.52930138]
[1769191236857,36.86919883,128.31,128.21,31.52618571]
[1769191237057,29.84609883,128.31,128.21,31.52618571]
[1769191237762,36.86879883,128.31,128.21,31.52618571]
[1769191237952,29.84609883,128.31,128.22,36.52930138]
[1769191238154,29.84609883,128.33,128.23,31.52618571]
[1769191238359,29.84609883,128.32,128.23,31.52618571]
[1769191239150,29.84609883,128.35,128.24,36.52930138]
[1769191239847,29.84609883,128.33,128.25,31.52618571]
[1769191240161,29.84609883,128.33,128.24,31.52618571]
[1769191240857,29.84609883,128.33,128.26,31.52618571]
[1769191241051,29.84609883,128.33,128.23,31.52618571]
[1769191241957,29.84609883,128.31,128.23,31.52618571]
[1769191242661,36.86919883,128.3,128.23,31.52618571]
[1769191243552,29.84609883,128.3,128.23,31.52618571]
[1769191244562,7.0219,128.32,128.24,31.52618571]
[1769191245361,36.86799883,128.32,128.24,31.52618571]
[1769191245563,36.86859883,128.31,128.24,31.52618571]
[1769191245750,29.84609883,128.31,128.24,31.52618571]
[1769191246766,29.84609883,128.34,128.24,38.55198571]
[1769191246964,29.84609883,128.34,128.26,31.52618571]
[1769191247655,139.05979883,128.34,128.26,31.52618571]
[1769191247862,29.84609883,128.32,128.23,38.55248571]
[1769191249072,7.0225,128.31,128.23,38.55248571]
[1769191250358,29.84609883,128.32,128.24,31.52618571]
[1769191250558,7.0216,128.33,128.24,36.52930138]
[1769191250753,29.84609883,128.32,128.22,31.52618571]
[1769191250956,7.0215,128.33,128.25,31.52618571]
[1769191251162,29.84609883,128.33,128.25,31.52618571]
[1769191251564,29.84609883,128.33,128.22,31.52618571]
[1769191251862,36.86929883,128.3,128.22,31.52618571]
[1769191252566,29.84609883,128.3,128.22,31.52618571]
[1769191253967,29.84609883,128.3,128.23,38.55268571]
[1769191254561,36.86779883,128.33,128.24,38.55218571]
[1769191254766,36.86779883,128.33,128.24,31.52618571]
[1769191255155,7.0204,128.35,128.26,31.52618571]
[1769191255469,29.84609883,128.36,128.28,31.52618571]
[1769191255665,29.84609883,128.39,128.3,31.52618571]
[1769191255865,7.0191,128.37,128.3,31.52618571]
[1769191256059,7.0191,128.37,128.31,0.05249489]
[1769191256256,29.84609883,128.39,128.31,0.05249489]
[1769191256257,29.84609883,128.39,128.31,31.5786806]
[1769191256469,7.0187,128.38,128.31,43.60399627]
[1769191256674,29.84609883,128.39,128.32,31.52618571]
[1769191257074,7.0181,128.39,128.32,38.54778571]
[1769191257368,7.0181,128.39,128.34,0.05976826]
[1769191257562,29.84609883,128.41,128.34,0.05976826]
[1769191257864,7.0174,128.4,128.34,0.05976826]
[1769191258064,7.0174,128.4,128.32,31.52618571]
[1769191258565,29.84609883,128.41,128.36,0.0545219]
[1769191259871,36.86159883,128.44,128.36,31.58070761]
[1769191260269,36.86159883,128.44,128.36,38.60010761]
[1769191260469,36.86159883,128.44,128.36,38.54558571]
[1769191260672,36.86159883,128.44,128.39,0.05062471]
[1769191260970,7.0145,128.46,128.39,0.05062471]
[1769191261171,29.84609883,128.47,128.39,36.57992609]
[1769191261567,29.84609883,128.47,128.39,36.52930138]
[1769191261768,29.84609883,128.5,128.4,38.54338571]
[1769191262068,29.84609883,128.5,128.42,0.05417288]
[1769191262277,7.0126,128.49,128.42,0.05417288]
[1769191262667,38.32191579,128.49,128.4,38.54338571]
[1769191262978,38.32191579,128.49,128.44,0.05010674]
[1769191264667,38.32101579,128.51,128.44,0.05010674]
[1769191264872,31.30931579,128.51,128.44,0.05010674]
[1769191265263,31.30931579,128.51,128.44,31.90505413]
[1769191265665,38.32141579,128.5,128.44,0.05010674]
[1769191266064,38.32141579,128.5,128.41,36.84728552]
[1769191266566,38.32141579,128.5,128.46,0.05125327]
[1769191267371,7.0127,128.49,128.41,36.84728552]
[1769191267577,31.30931579,128.5,128.41,31.85494739]
[1769191268267,31.30931579,128.5,128.41,43.86388552]
[1769191268268,38.32151579,128.5,128.41,43.86388552]
[1769191268468,38.32151579,128.5,128.42,32.10678788]
[1769191268773,31.4099996,128.49,128.42,32.10678788]
[1769191269375,7.0132,128.48,128.42,32.10678788]
[1769191270871,31.4099996,128.49,128.42,32.10678788]
[1769191271482,109.0613,128.52,128.42,39.12288788]
[1769191271483,31.4099996,128.52,128.42,39.12288788]
[1769191272678,31.4099996,128.5,128.4,7.0171]
[1769191272878,31.4099996,128.5,128.4,39.12388788]
[1769191273785,38.4222996,128.5,128.41,39.12348788]
[1769191274086,38.4222996,128.5,128.41,37.09912601]
[1769191274783,31.4099996,128.5,128.43,32.10678788]
[1769191274983,31.4099996,128.5,128.4,32.10678788]
[1769191275876,31.4099996,128.5,128.41,37.09912601]
[1769191276276,31.4099996,128.5,128.41,32.10678788]
[1769191276686,7.0136,128.47,128.41,32.10678788]
[1769191276882,38.4235996,128.47,128.38,32.10678788]
[1769191277075,31.4099996,128.47,128.38,32.10678788]
[1769191277280,31.4099996,128.47,128.39,32.10678788]
[1769191278080,31.4099996,128.5,128.4,32.10678788]
[1769191278877,31.4099996,128.5,128.42,32.10678788]
[1769191280592,38.4218996,128.5,128.43,39.12248788]
[1769191280783,31.4099996,128.52,128.43,32.10678788]
[1769191281081,31.4099996,128.52,128.45,39.12128788]
[1769191281282,31.4099996,128.55,128.45,32.10678788]
[1769191281680,31.4099996,128.55,128.47,32.10678788]
[1769191282987,31.4099996,128.57,128.49,32.10678788]
[1769191283182,31.4099996,128.57,128.46,37.09912601]
[1769191283986,7.0105,128.53,128.46,32.10678788]
[1769191284878,7.0105,128.53,128.46,39.12088788]
[1769191285085,31.4099996,128.53,128.46,32.10678788]
[1769191285286,31.4099996,128.51,128.43,32.10678788]
[1769191285489,31.4099996,128.51,128.39,109.1608]
[1769191285490,31.4099996,128.51,128.4,32.10678788]
[1769191285985,31.4099996,128.49,128.4,39.12378788]
[1769191286290,0.05895631,128.47,128.4,39.12378788]
[1769191286488,0.05895631,128.47,128.37,32.10678788]
[1769191286489,31.4099996,128.46,128.37,32.10678788]
[1769191287388,7.0147,128.45,128.37,39.12568788]
[1769191287698,38.4246996,128.45,128.37,39.12568788]
[1769191287985,31.4099996,128.45,128.35,39.12678788]
[1769191288788,38.4249996,128.45,128.36,39.12618788]
[1769191288990,31.4099996,128.45,128.36,39.12618788]
[1769191289593,31.4099996,128.44,128.36,32.10678788]
[1769191290691,31.4099996,128.47,128.39,32.16485771]
[1769191291092,38.4238996,128.47,128.39,32.10678788]
[1769191291589,31.4099996,128.47,128.39,32.10678788]
[1769191292091,31.4099996,128.47,128.42,0.05070286]
[1769191292487,7.0142,128.46,128.42,0.05070286]
[1769191295598,31.4099996,128.47,128.42,0.05070286]
[1769191296300,38.4236996,128.47,128.42,0.05070286]
[1769191297091,31.4099996,128.47,128.42,0.05070286]
[1769191297690,30.33411519,128.51,128.42,32.79461624]
[1769191298202,7.0119,128.5,128.43,7.0157]
[1769191298498,30.33411519,128.51,128.45,0.05738045]
[1769191298896,7.0119,128.5,128.45,0.05738045]
[1769191299193,30.33411519,128.51,128.45,0.05738045]
[1769191299590,37.34551519,128.51,128.45,0.05738045]
[1769191299798,30.33411519,128.54,128.45,32.80129383]
[1769191300194,30.33411519,128.54,128.45,32.74391338]
[1769191300593,37.34431519,128.54,128.46,39.75801338]
[1769191300801,30.33411519,128.54,128.48,0.05648069]
[1769191301203,7.0108,128.52,128.48,0.05648069]
[1769191301590,30.33411519,128.51,128.44,4.99233813]
[1769191301796,35.32645332,128.51,128.4,32.74391338]
[1769191302698,30.33411519,128.5,128.42,7.0163]
[1769191302900,35.32645332,128.49,128.37,32.74391338]
[1769191303099,30.38440118,128.47,128.37,32.74391338]
[1769191303503,30.33411519,128.47,128.37,32.74391338]
[1769191303888,0.05893562,128.43,128.38,39.76221338]
[1769191304301,0.05893562,128.43,128.38,32.74391338]
[1769191304699,0.05893562,128.43,128.35,39.76371338]
[1769191305108,7.0153,128.44,128.35,39.76371338]
[1769191305305,37.34941519,128.44,128.35,39.76371338]
[1769191306102,0.0539851,128.41,128.35,39.76371338]
[1769191306400,0.0539851,128.41,128.33,7.0209]
[1769191306598,0.0539851,128.41,128.32,32.74391338]
[1769191306599,30.38810029,128.41,128.32,32.74391338]
[1769191306793,30.33411519,128.41,128.32,32.74391338]
[1769191307906,7.0175,128.4,128.32,39.76551338]
[1769191310311,37.35221519,128.39,128.3,7.0226]
[1769191310514,30.33411519,128.39,128.3,7.0226]
[1769191310905,30.33411519,128.39,128.3,39.76651338]
[1769191311913,7.0187,128.38,128.3,39.76651338]
[1769191312112,30.33411519,128.38,128.3,32.74391338]
[1769191312309,30.33411519,128.38,128.26,37.73625151]
[1769191312310,30.39069315,128.36,128.26,37.73625151]
[1769191312706,7.0202,128.35,128.27,39.76821338]
[1769191313119,0.05020618,128.32,128.27,39.76821338]
[1769191313314,30.33411519,128.36,128.3,0.05284127]
[1769191315014,37.35371519,128.36,128.3,0.05284127]
[1769191315310,114.17153813,128.38,128.3,0.05284127]
[1769191315311,30.33411519,128.38,128.3,32.79675465]
[1769191315813,7.0198,128.36,128.3,32.74391338]
[1769191316012,37.35391519,128.36,128.28,12.01613813]
[1769191316208,30.33411519,128.36,128.27,32.74391338]
[1769191316414,7.0207,128.34,128.27,32.74391338]
[1769191317431,37.35481519,128.34,128.27,32.74391338]
[1769191317730,7.0214,128.33,128.27,32.74391338]
[1769191319025,30.33411519,128.32,128.25,32.74391338]
[1769191319722,30.38865045,128.3,128.24,7.0261]
[1769191319927,30.38865045,128.3,128.21,32.74391338]
[1769191320525,30.33411519,128.3,128.21,32.74391338]
[1769191320726,30.33411519,128.3,128.22,39.77101338]
[1769191320928,30.33411519,128.3,128.22,32.74391338]
[1769191321134,30.33411519,128.33,128.22,32.74391338]
[1769191321736,30.33411519,128.33,128.24,32.74391338]
[1769191321737,37.35571519,128.33,128.24,32.74391338]
[1769191321933,30.33411519,128.36,128.24,37.73625151]
[1769191322432,7.0213,128.33,128.27,0.05090589]
[1769191322632,31.70306368,128.34,128.27,0.05090589]
[1769191322834,31.70306368,128.34,128.26,30.64461432]
[1769191323541,31.70306368,128.34,128.23,30.64461432]
[1769191323734,31.70306368,128.31,128.2,35.63695245]
[1769191323935,31.75438313,128.31,128.2,35.63695245]
[1769191324234,7.024,128.28,128.21,7.0275]
[1769191324737,31.70306368,128.29,128.21,7.0275]
[1769191325936,38.72656368,128.29,128.21,7.0275]
[1769191326233,31.70306368,128.29,128.2,30.64461432]
[1769191326423,39.29845732,128.28,128.2,30.64461432]
[1769191326627,0.0551247,128.26,128.2,30.64461432]
[1769191327140,0.0551247,128.26,128.2,37.67281432]
[1769191327333,7.0233,128.3,128.23,32.39481649]
[1769191328038,32.27405732,128.31,128.23,32.39481649]
[1769191328733,32.27405732,128.31,128.26,0.05654469]
[1769191328929,7.0222,128.32,128.26,0.05654469]
[1769191329127,32.27405732,128.34,128.26,0.05654469]
[1769191329636,32.27405732,128.34,128.25,32.39481649]
[1769191329841,7.0212,128.33,128.26,7.025]
[1769191330040,408.89197257,128.38,128.29,0.05937123]
[1769191330041,32.27405732,128.37,128.29,0.05937123]
[1769191330440,7.0205,128.35,128.29,0.05937123]
[1769191330736,109.1886,128.37,128.26,5.00817257]
[1769191330940,39.29475732,128.34,128.27,7.0243]
[1769191331240,32.27405732,128.37,128.27,32.39481649]
[1769191331538,32.27405732,128.36,128.24,32.39481649]
[1769191331736,32.27405732,128.33,128.24,32.39481649]
[1769191332338,39.29625732,128.32,128.24,32.39481649]
[1769191333129,7.0223,128.31,128.24,39.42081649]
[1769191334042,7.0217,128.33,128.25,32.39481649]
[1769191334243,32.27405732,128.33,128.25,32.39481649]
[1769191335042,32.27405732,128.32,128.25,32.39481649]
[1769191336048,7.0225,128.31,128.25,32.39481649]
[1769191337338,7.0225,128.31,128.23,7.0265]
[1769191337538,39.29655732,128.31,128.24,7.0261]
[1769191337841,7.0217,128.33,128.24,32.39481649]
[1769191338142,7.0217,128.33,128.26,7.0249]
[1769191339045,7.0217,128.33,128.26,39.41971649]
[1769191340145,7.0206,128.35,128.27,32.39481649]
[1769191341446,32.27405732,128.39,128.31,32.39481649]
[1769191341842,39.29245732,128.39,128.31,39.41701649]
[1769191342044,32.27405732,128.39,128.31,32.39481649]
[1769191344562,7.0185,128.38,128.31,39.41691649]
[1769191344759,5.00817257,128.43,128.31,32.39481649]
[1769191344760,32.27405732,128.42,128.31,32.39481649]
[1769191345149,39.29075732,128.42,128.34,39.41531649]
[1769191345354,39.29075732,128.42,128.34,32.39481649]
[1769191345553,32.27405732,128.45,128.34,37.40298906]
[1769191346159,32.27405732,128.45,128.38,0.05698158]
[1769191346663,114.09667257,128.49,128.38,32.45179807]
[1769191346664,32.27405732,128.48,128.38,32.45179807]
[1769191346853,141.37345732,128.48,128.39,32.39481649]
[1769191347049,32.27405732,128.47,128.39,32.39481649]
[1769191347352,7.0149,128.45,128.38,39.41321649]
[1769191347553,32.27405732,128.47,128.42,0.05133347]
[1769191348965,7.0142,128.46,128.42,0.05133347]
[1769191349159,7.0142,128.46,128.38,39.41321649]
[1769191349664,32.27405732,128.45,128.35,32.39481649]
[1769191350967,7.0153,128.44,128.35,39.41481649]
[1769191352265,37.28298473,128.44,128.35,39.41481649]
[1769191352763,7.0159,128.43,128.35,39.41481649]
[1769191352960,37.28358473,128.43,128.35,32.39481649]
[1769191354056,30.26768473,128.43,128.35,32.39481649]
[1769191354256,30.26768473,128.45,128.35,32.39481649]
[1769191355165,7.0153,128.44,128.36,38.93635081]
[1769191355658,7.0159,128.43,128.36,31.91685081]
[1769191356957,37.28268473,128.45,128.36,31.91685081]
[1769191357362,30.26768473,128.45,128.38,31.91685081]
[1769191357553,37.28238473,128.45,128.38,31.91685081]
[1769191357759,37.28238473,128.45,128.38,38.93525081]
[1769191357960,37.28238473,128.45,128.38,31.91685081]
[1769191359059,30.26768473,128.45,128.38,31.91685081]
[1769191359254,109.0943,128.48,128.35,31.91685081]
[1769191359255,37.28288473,128.44,128.35,31.91685081]
[1769191360365,7.0158,128.43,128.36,38.93635081]
[1769191363764,114.11077257,128.47,128.38,31.91685081]
[1769191363765,7.015,128.45,128.38,31.91685081]
[1769191364657,30.26768473,128.5,128.4,31.91685081]
[1769191365060,30.26768473,128.49,128.4,31.91685081]
[1769191365265,30.26768473,128.49,128.4,38.93395081]
[1769191365861,7.0136,128.47,128.4,38.93395081]
[1769191367070,7.013,128.48,128.4,38.93395081]
[1769191367478,139.33258473,128.52,128.4,31.91685081]
[1769191367675,139.34608473,128.5,128.4,31.91685081]
[1769191367862,30.26768473,128.49,128.4,31.91685081]
[1769191368559,7.0139,128.47,128.4,38.93415081]
[1769191368964,30.26768473,128.47,128.37,31.91685081]
[1769191369167,37.28228473,128.45,128.38,7.0179]
[1769191369556,30.26768473,128.45,128.39,7.0176]
[1769191369763,30.26768473,128.51,128.4,36.92502338]
[1769191369969,30.26768473,128.5,128.4,31.91685081]
[1769191370264,30.26768473,128.49,128.4,38.93415081]
[1769191371975,7.013,128.48,128.4,38.93415081]
[1769191372177,7.013,128.48,128.41,7.0168]
[1769191372380,30.26768473,128.49,128.41,31.91685081]
[1769191372766,30.26768473,128.52,128.44,7.015]
[1769191373168,37.27848473,128.52,128.44,31.91685081]
[1769191373366,37.27848473,128.52,128.46,7.014]
[1769191373367,30.26768473,128.52,128.46,7.014]
[1769191373970,35.2758573,128.55,128.46,31.91685081]
[1769191374169,35.2758573,128.55,128.43,109.1315]
[1769191374170,30.26768473,128.55,128.47,31.91685081]
[1769191374376,30.26768473,128.58,128.47,36.92502338]
[1769191374773,37.27528473,128.58,128.49,7.0122]
[1769191375076,37.27528473,128.58,128.49,38.92905081]
[1769191375268,30.26768473,128.54,128.46,31.91685081]
[1769191375978,7.009,128.56,128.46,31.91685081]
[1769191376272,7.009,128.56,128.46,36.92502338]
[1769191376576,30.26768473,128.57,128.48,31.91685081]
[1769191377274,37.27448473,128.6,128.49,31.91685081]
[1769191377477,37.27448473,128.6,128.51,31.91685081]
[1769191377667,30.26768473,128.6,128.51,31.91685081]
[1769191377977,30.26768473,128.57,128.49,31.91685081]
[1769191378176,35.2758573,128.57,128.46,31.91685081]
[1769191379073,0.05163707,128.53,128.46,31.91685081]
[1769191379277,0.05163707,128.53,128.47,38.93025081]
[1769191379664,7.0094,128.55,128.47,38.93025081]
[1769191379864,37.27708473,128.55,128.47,38.93025081]
[1769191380676,37.27708473,128.55,128.47,31.91685081]
[1769191380881,30.26768473,128.55,128.47,31.91685081]
[1769191382978,37.27698473,128.55,128.47,31.91685081]
[1769191383173,30.26768473,128.55,128.47,31.91685081]
[1769191383884,7.0099,128.54,128.47,31.91685081]
[1769191384482,39.74693871,128.54,128.47,31.91685081]
[1769191386070,109.0212,128.57,128.47,36.90496727]
[1769191386071,7.0088,128.56,128.47,36.90496727]
[1769191386275,32.73703871,128.57,128.49,36.55383773]
[1769191387782,32.73703871,128.57,128.5,39.16593919]
[1769191388285,32.73703871,128.57,128.5,32.15403919]
[1769191388778,7.0073,128.59,128.5,39.16563919]
[1769191389285,31.65993727,128.6,128.5,39.16563919]
[1769191389481,31.65993727,128.6,128.5,32.15403919]
[1769191389679,0.05558562,128.56,128.51,39.16523919]
[1769191389883,0.05558562,128.56,128.51,32.15403919]
[1769191393478,0.05558562,128.56,128.5,7.0119]
[1769191394385,0.05558562,128.56,128.5,39.16593919]
[1769191394890,0.05558562,128.56,128.51,39.16533919]
[1769191396288,0.05558562,128.56,128.51,32.15403919]
[1769191397388,0.05558562,128.56,128.51,39.16533919]
[1769191397582,0.05558562,128.56,128.51,32.15403919]
[1769191400187,0.05558562,128.56,128.51,39.16513919]
[1769191401592,31.65993727,128.63,128.53,37.14215565]
[1769191401802,31.65993727,128.66,128.56,32.15403919]
[1769191402093,31.65993727,128.66,128.58,44.14955565]
[1769191402687,38.66323727,128.66,128.58,32.15403919]
[1769191402883,31.65993727,128.66,128.58,32.15403919]
[1769191403184,31.65993727,128.66,128.61,0.05237795]
[1769191403894,31.65993727,128.69,128.61,32.20641714]
[1769191404401,31.65993727,128.69,128.61,32.15403919]
[1769191404787,31.65993727,128.69,128.64,0.05120924]
[1769191405189,31.65993727,128.72,128.64,0.05120924]
[1769191405583,31.65993727,128.72,128.64,32.15403919]
[1769191405786,31.65993727,128.75,128.65,37.14215565]
[1769191405994,31.65993727,128.75,128.67,0.05956616]
[1769191406293,31.65993727,128.75,128.68,7.0018]
[1769191406791,6.9978,128.76,128.68,39.15583919]
[1769191406994,31.65993727,128.78,128.7,0.05200785]
[1769191407192,145.49145373,128.78,128.7,0.05200785]
[1769191407395,31.65993727,128.76,128.7,0.05200785]
[1769191407698,31.65993727,128.76,128.68,32.15403919]
[1769191407885,31.65993727,128.76,128.72,0.05298551]
[1769191408283,31.65993727,128.76,128.68,32.15403919]
[1769191408487,0.05297476,128.75,128.68,32.15403919]
[1769191409495,31.71291203,128.75,128.66,32.15403919]
[1769191409998,31.65993727,128.75,128.66,32.15403919]
[1769191410198,31.65993727,128.75,128.68,32.15403919]
[1769191410701,0.05238733,128.73,128.68,32.15403919]
[1769191411284,0.05238733,128.73,128.65,44.14555565]
[1769191411589,0.05238733,128.73,128.66,32.15403919]
[1769191411896,31.65993727,128.75,128.66,32.15403919]
[1769191412096,39.96200355,128.74,128.66,32.15403919]
[1769191412295,32.96290355,128.74,128.63,43.55767644]
[1769191412491,37.95102001,128.74,128.63,38.56955998]
[1769191413291,6.9996,128.73,128.63,38.56955998]
[1769191413596,108.8514,128.77,128.66,31.56505998]
[1769191413597,32.96290355,128.77,128.66,31.56505998]
[1769191413792,32.96290355,128.77,128.68,31.56505998]
[1769191413991,32.96290355,128.8,128.7,31.56505998]
[1769191414290,32.96290355,128.78,128.7,31.56505998]
[1769191414895,6.9974,128.77,128.7,31.56505998]
[1769191416099,32.96290355,128.77,128.7,31.56505998]
[1769191416299,6.9964,128.79,128.7,31.56505998]
[1769191416998,6.9964,128.79,128.7,38.56575998]
[1769191417202,32.96290355,128.8,128.71,36.55317644]
[1769191417403,32.96290355,128.8,128.72,31.56505998]
[1769191417892,32.96290355,128.79,128.72,31.56505998]
[1769191418093,32.96290355,128.79,128.69,36.55317644]
[1769191418295,32.96290355,128.79,128.69,31.56505998]
[1769191418489,108.8093,128.82,128.72,36.55317644]
[1769191418490,32.96290355,128.82,128.72,36.55317644]
[1769191418699,32.96290355,128.82,128.72,43.55297644]
[1769191418901,32.96290355,128.82,128.73,31.56505998]
[1769191419493,32.96290355,128.82,128.74,31.56505998]
[1769191419687,32.96290355,128.82,128.71,31.56505998]
[1769191419889,32.96290355,128.82,128.72,36.55317644]
[1769191420098,32.96290355,128.82,128.73,31.56505998]
[1769191420692,39.95870355,128.8,128.72,6.9997]
[1769191421300,39.95870355,128.8,128.72,38.56475998]
[1769191421897,39.95870355,128.8,128.72,31.56505998]
[1769191422099,32.96290355,128.8,128.72,31.56505998]
[1769191422401,32.96290355,128.8,128.72,36.55317644]
[1769191422603,6.9949,128.82,128.73,31.56505998]
[1769191422802,43.02779797,128.83,128.75,31.56505998]
[1769191423494,141.71400355,128.89,128.77,31.56505998]
[1769191423697,32.96290355,128.88,128.79,31.56505998]
[1769191424398,39.95440355,128.88,128.79,31.56505998]
[1769191425201,39.95440355,128.88,128.8,6.9953]
[1769191425809,39.95440355,128.88,128.81,6.9949]
[1769191426106,32.96290355,128.88,128.81,6.9949]